fUSD/lending_fUSD_20250405
["ID","MTS","AMOUNT","RATE_DAILY","PERIOD"]
[357185574,1743871860896,-781.09,0.00031506,2]
[357185575,1743871860905,-619.11,0.00031506,2]
[357185576,1743871860915,-1004.02,0.00031506,2]
[357185577,1743871860924,-645.38,0.00031506,2]
[357185578,1743871860933,-500.0,0.00031506,2]
[357185579,1743871860942,-500.0,0.00031506,2]
[357185580,1743871860952,-519.04,0.00031506,2]
[357185581,1743871860962,-500.0,0.00031506,2]
[357185582,1743871860972,-500.0,0.00031506,2]
[357185583,1743871860982,-500.0,0.00031506,2]
[357185584,1743871860992,-500.0,0.00031506,2]
[357185585,1743871861002,-500.0,0.00031506,2]
[357185586,1743871861011,-500.0,0.00031506,2]
[357185587,1743871861021,-891.95,0.00031506,2]
[357185588,1743871861030,-500.0,0.00031506,2]
[357185589,1743871861040,-2752.19,0.00031506,2]
[357185590,1743871861049,-1592.16,0.00031506,2]
[357185591,1743871861058,-857.66,0.00031506,2]
[357185592,1743871861068,-161.044165,0.00031506,7]
[357185593,1743871861077,-158.434415,0.00031506,7]
[357185594,1743871861087,-809.97,0.00031506,2]
[357185595,1743871861097,-161.044165,0.00031506,7]
[357185596,1743871861106,-601.58,0.00031506,2]
[357185597,1743871861116,-2922.39,0.00031506,2]
[357185598,1743871861126,-159.947432,0.00031506,7]
[357185599,1743871861136,-1083.85,0.00031506,2]
[357185600,1743871861145,-151.0,0.00031506,7]
[357185601,1743871861155,-161.60431677,0.00031506,2]
[357185602,1743871861164,-500.0,0.00031506,2]
[357185603,1743871861177,-151.0,0.00031506,7]
[357185604,1743871861194,-151.0,0.00031506,7]
[357185605,1743871861208,-500.0,0.00031506,2]
[357185606,1743871861220,-500.0,0.00031506,2]
[357185607,1743871861235,-500.0,0.00031506,2]
[357185608,1743871861250,-500.0,0.00031506,2]
[357185609,1743871861265,-1033.3,0.00031506,2]
[357185610,1743871861279,-500.0,0.00031506,2]
[357185611,1743871861292,-500.0,0.00031506,2]
[357185612,1743871861308,-500.0,0.00031506,2]
[357185613,1743871861322,-543.71,0.00031506,2]
[357185614,1743871861337,-181.47,0.00031506,2]
[357185615,1743871861352,-467.91954472,0.00031506,2]
[357185616,1743871861368,-500.0,0.00031506,2]
[357185617,1743871861383,-500.0,0.00031506,2]
[357185618,1743871861399,-1172.11,0.00031506,2]
[357185619,1743871861414,-500.0,0.00031506,2]
[357185620,1743871861428,-500.0,0.00031506,2]
[357185621,1743871861443,-325.009522,0.00031506,2]
[357185622,1743871861457,-500.0,0.00031506,2]
[357185623,1743871861473,-544.39786569,0.00031506,2]
[357185624,1743871861486,-750.61,0.00031506,2]
[357185625,1743871861499,-523.57468149,0.00031506,2]
[357185626,1743871861512,-540.58,0.00031506,2]
[357185627,1743871861524,-500.0,0.00031506,2]
[357185628,1743871861540,-593.03498818,0.00031506,2]
[357185629,1743871861552,-500.0,0.00031506,2]
[357185630,1743871861563,-500.0,0.00031506,2]
[357185631,1743871861577,-225.4729375,0.00031506,2]
[357185632,1743871861593,-500.0,0.00031506,2]
[357185633,1743871861605,-1037.47,0.00031506,2]
[357185634,1743871861617,-500.0,0.00031506,2]
[357185635,1743871861630,-500.0,0.00031506,2]
[357185636,1743871861641,-500.0,0.00031506,2]
[357185637,1743871861654,-151.0,0.00031506,7]
[357185638,1743871861667,-500.0,0.00031506,2]
[357185639,1743871861679,-183.830562,0.00031506,7]
[357185640,1743871861692,-501.49,0.00031506,2]
[357185641,1743871861704,-500.0,0.00031506,2]
[357185642,1743871861717,-500.0,0.00031506,2]
[357185643,1743871861730,-500.0,0.00031506,2]
[357185644,1743871861743,-500.0,0.00031506,2]
[357185645,1743871861755,-673.21,0.00031506,2]
[357185646,1743871861767,-500.0,0.00031506,2]
[357185647,1743871861779,-500.0,0.00031506,2]
[357185648,1743871861791,-500.0,0.00031506,2]
[357185649,1743871861802,-151.0,0.00031506,7]
[357185650,1743871861814,-845.57,0.00031506,2]
[357185651,1743871861825,-543.39,0.00031506,2]
[357185652,1743871861837,-500.0,0.00031506,2]
[357185653,1743871861849,-2562.27,0.00031506,2]
[357185654,1743871861860,-500.0,0.00031506,2]
[357185655,1743871861871,-500.0,0.00031506,2]
[357185656,1743871861883,-151.0,0.00031506,7]
[357185657,1743871861896,-695.81,0.00031506,2]
[357185658,1743871861908,-151.0,0.00031506,7]
[357185659,1743871861919,-500.0,0.00031506,2]
[357185660,1743871861931,-500.0,0.00031506,2]
[357185661,1743871861943,-500.0,0.00031506,2]
[357185662,1743871861956,-757.7,0.00031506,2]
[357185663,1743871861968,-500.0,0.00031506,2]
[357185664,1743871861980,-515.79,0.00031506,2]
[357185665,1743871861992,-871.31,0.00031506,2]
[357185666,1743871862004,-500.0,0.00031506,2]
[357185667,1743871862016,-939.25,0.00031506,2]
[357185668,1743871862028,-151.0,0.00031506,7]
[357185669,1743871862040,-500.0,0.00031506,2]
[357185670,1743871862052,-500.0,0.00031506,2]
[357185671,1743871862064,-500.0,0.00031506,2]
[357185672,1743871862076,-629.48,0.00031506,2]
[357185673,1743871862088,-500.0,0.00031506,2]
[357185674,1743871862099,-783.62,0.00031506,2]
[357185675,1743871862110,-500.0,0.00031506,2]
[357185676,1743871862121,-500.0,0.00031506,2]
[357185677,1743871862133,-561.1,0.00031506,2]
[357185678,1743871862144,-382.555943,0.00031506,7]
[357185679,1743871862155,-673.31,0.00031506,2]
[357185680,1743871862167,-382.555943,0.00031506,7]
[357185681,1743871862178,-1406.55,0.00031506,2]
[357185682,1743871862189,-500.0,0.00031506,2]
[357185683,1743871862201,-17329.31,0.00031506,2]
[357185684,1743871862213,-510.25,0.00031506,2]
[357185685,1743871862224,-151.0,0.00031506,7]
[357185686,1743871862236,-500.0,0.00031506,2]
[357185687,1743871862247,-1195.62,0.00031506,2]
[357185688,1743871862258,-1437.78,0.00031506,2]
[357185689,1743871862269,-500.0,0.00031506,2]
[357185690,1743871862281,-296.96417144,0.00031506,2]
[357185691,1743871862293,-600.12,0.00031506,2]
[357185692,1743871862308,-718.29,0.00031506,2]
[357185693,1743871862320,-645.64,0.00031506,2]
[357185694,1743871862332,-971.91,0.00031506,2]
[357185695,1743871862344,-500.0,0.00031506,2]
[357185696,1743871862356,-500.0,0.00031506,2]
[357185697,1743871862368,-754.3,0.00031506,2]
[357185698,1743871862381,-1006.43,0.00031506,2]
[357185699,1743871862394,-500.0,0.00031506,2]
[357185700,1743871862407,-151.0,0.00031506,7]
[357185701,1743871862420,-602.67,0.00031506,2]
[357185702,1743871862434,-822.78,0.00031506,2]
[357185703,1743871862447,-8628.17,0.00031506,2]
[357185704,1743871862460,-500.0,0.00031506,2]
[357185705,1743871862475,-11180.84,0.00031506,2]
[357185706,1743871862488,-500.0,0.00031506,2]
[357185707,1743871862503,-640.66,0.00031506,2]
[357185708,1743871862515,-500.0,0.00031506,2]
[357185709,1743871862528,-5048.56,0.00031506,2]
[357185710,1743871862541,-511.23,0.00031506,2]
[357185711,1743871862556,-617.12,0.00031506,2]
[357185712,1743871862570,-929.13,0.00031506,2]
[357185713,1743871862584,-151.0,0.00031506,7]
[357185714,1743871862596,-500.0,0.00031506,2]
[357185715,1743871862610,-151.0,0.00031506,7]
[357185716,1743871862623,-2394.43,0.00031506,2]
[357185717,1743871862636,-500.0,0.00031506,2]
[357185718,1743871862648,-500.0,0.00031506,2]
[357185719,1743871862660,-500.0,0.00031506,2]
[357185720,1743871862673,-500.0,0.00031506,2]
[357185721,1743871862686,-500.0,0.00031506,2]
[357185722,1743871862698,-20826.04,0.00031506,2]
[357185723,1743871862711,-1582.99,0.00031506,2]
[357185724,1743871862725,-500.0,0.00031506,2]
[357185725,1743871862737,-187.073608,0.00031506,7]
[357185726,1743871862963,-187.073608,0.00031506,7]
[357185727,1743871862975,-5706.68191713,0.00031591,2]
[357185728,1743871862984,-2217.60395128,0.00031651,2]
[357185729,1743871862994,-1088.49,0.00031769,2]
[357185730,1743871863004,-500.0,0.00031779,2]
[357185731,1743871863014,-500.0,0.00031779,2]
[357185732,1743871863024,-1054.39,0.0003178,2]
[357185733,1743871863034,-500.0,0.0003178,2]
[357185734,1743871863043,-500.0,0.0003178,2]
[357185735,1743871863054,-500.0,0.0003178,2]
[357185736,1743871863064,-500.0,0.0003178,2]
[357185737,1743871863075,-500.0,0.0003178,2]
[357185738,1743871863084,-815.78,0.0003178,2]
[357185739,1743871863094,-500.0,0.0003178,2]
[357185740,1743871863105,-546.4,0.0003178,2]
[357185741,1743871863115,-1733.42,0.0003178,2]
[357185742,1743871863124,-500.0,0.0003178,2]
[357185743,1743871863134,-500.0,0.0003178,2]
[357185744,1743871863144,-500.0,0.0003178,2]
[357185745,1743871863154,-2000.0,0.0003178,2]
[357185746,1743871863163,-500.0,0.0003178,2]
[357185747,1743871863173,-540.73,0.0003178,2]
[357185748,1743871863183,-151.0,0.0003178,7]
[357185749,1743871863194,-151.0,0.0003178,7]
[357185750,1743871863204,-500.0,0.0003178,2]
[357185751,1743871863214,-1151.97,0.0003178,2]
[357185752,1743871863225,-781.09,0.0003178,2]
[357185753,1743871863237,-619.11,0.0003178,2]
[357185754,1743871863247,-1004.02,0.0003178,2]
[357185755,1743871863259,-645.38,0.0003178,2]
[357185756,1743871863269,-500.0,0.0003178,2]
[357185757,1743871863280,-500.0,0.0003178,2]
[357185758,1743871863290,-519.04,0.0003178,2]
[357185759,1743871863302,-500.0,0.0003178,2]
[357185760,1743871863314,-500.0,0.0003178,2]
[357185761,1743871863325,-500.0,0.0003178,2]
[357185762,1743871863336,-500.0,0.0003178,2]
[357185763,1743871863347,-500.0,0.0003178,2]
[357185764,1743871863357,-500.0,0.0003178,2]
[357185765,1743871863367,-891.95,0.0003178,2]
[357185766,1743871863378,-500.0,0.0003178,2]
[357185767,1743871863389,-2752.19,0.0003178,2]
[357185768,1743871863400,-1592.16,0.0003178,2]
[357185769,1743871863409,-857.66,0.0003178,2]
[357185770,1743871863419,-151.0,0.0003178,7]
[357185771,1743871863430,-809.97,0.0003178,2]
[357185772,1743871863440,-601.58,0.0003178,2]
[357185773,1743871863449,-2922.39,0.0003178,2]
[357185774,1743871863460,-1083.85,0.0003178,2]
[357185775,1743871863469,-500.0,0.0003178,2]
[357185776,1743871863480,-500.0,0.0003178,2]
[357185777,1743871863490,-500.0,0.0003178,2]
[357185778,1743871863500,-491.51826162,0.0003178,2]
[357185779,1743871863510,-500.0,0.0003178,2]
[357185780,1743871863520,-1033.3,0.0003178,2]
[357185781,1743871863530,-506.12385707,0.0003178,2]
[357185782,1743871863540,-500.0,0.0003178,2]
[357185783,1743871863550,-543.71,0.0003178,2]
[357185784,1743871863563,-500.0,0.0003178,2]
[357185785,1743871863573,-500.0,0.0003178,2]
[357185786,1743871863583,-1172.11,0.0003178,2]
[357185787,1743871863594,-500.0,0.0003178,2]
[357185788,1743871863603,-637.28211089,0.0003178,2]
[357185789,1743871863614,-401.96002323,0.0003178,2]
[357185790,1743871863623,-750.61,0.0003178,2]
[357185791,1743871863633,-540.58,0.0003178,2]
[357185792,1743871863642,-500.0,0.0003178,2]
[357185793,1743871863651,-500.0,0.0003178,2]
[357185794,1743871863661,-500.0,0.0003178,2]
[357185795,1743871863671,-196.29112732,0.0003178,2]
[357185796,1743871863681,-1037.47,0.0003178,2]
[357185797,1743871863690,-500.0,0.0003178,2]
[357185798,1743871863700,-151.0,0.0003178,7]
[357185799,1743871863710,-151.0,0.0003178,7]
[357185800,1743871863720,-500.0,0.0003178,2]
[357185801,1743871863730,-536.17531062,0.0003178,2]
[357185802,1743871863740,-500.0,0.0003178,2]
[357185803,1743871863749,-501.49,0.0003178,2]
[357185804,1743871863759,-500.0,0.0003178,2]
[357185805,1743871863769,-500.0,0.0003178,2]
[357185806,1743871863779,-500.0,0.0003178,2]
[357185807,1743871863790,-500.0,0.0003178,2]
[357185808,1743871863799,-673.21,0.0003178,2]
[357185809,1743871863809,-151.0,0.0003178,7]
[357185810,1743871863819,-500.0,0.0003178,2]
[357185811,1743871863829,-500.0,0.0003178,2]
[357185812,1743871863839,-151.0,0.0003178,7]
[357185813,1743871863849,-500.0,0.0003178,2]
[357185814,1743871863859,-2904.460534,0.0003178,7]
[357185815,1743871863869,-845.57,0.0003178,2]
[357185816,1743871863879,-2904.460534,0.0003178,7]
[357185817,1743871863888,-543.39,0.0003178,2]
[357185818,1743871863898,-500.0,0.0003178,2]
[357185819,1743871863908,-2562.27,0.0003178,2]
[357185820,1743871863918,-484.39847539,0.0003178,2]
[357185821,1743871863928,-500.0,0.0003178,2]
[357185822,1743871863938,-695.81,0.0003178,2]
[357185823,1743871863948,-611.88253533,0.0003178,2]
[357185824,1743871863958,-151.0,0.0003178,7]
[357185825,1743871863967,-500.0,0.0003178,2]
[357185826,1743871863978,-151.0,0.0003178,7]
[357185827,1743871863988,-757.7,0.0003178,2]
[357185828,1743871863999,-500.0,0.0003178,2]
[357185829,1743871864010,-500.0,0.0003178,2]
[357185830,1743871864020,-515.79,0.0003178,2]
[357185831,1743871864031,-871.31,0.0003178,2]
[357185832,1743871864041,-500.0,0.0003178,2]
[357185833,1743871864052,-939.25,0.0003178,2]
[357185834,1743871864062,-500.0,0.0003178,2]
[357185835,1743871864072,-500.0,0.0003178,2]
[357185836,1743871864082,-500.0,0.0003178,2]
[357185837,1743871864092,-629.48,0.0003178,2]
[357185838,1743871864101,-500.0,0.0003178,2]
[357185839,1743871864111,-783.62,0.0003178,2]
[357185840,1743871864121,-531.10855265,0.0003178,2]
[357185841,1743871864131,-500.0,0.0003178,2]
[357185842,1743871864141,-561.1,0.0003178,2]
[357185843,1743871864151,-673.31,0.0003178,2]
[357185844,1743871864161,-1406.55,0.0003178,2]
[357185845,1743871864171,-500.0,0.0003178,2]
[357185846,1743871864181,-17329.31,0.0003178,2]
[357185847,1743871864191,-510.25,0.0003178,2]
[357185848,1743871864200,-396.36956271,0.0003178,2]
[357185849,1743871864210,-1195.62,0.0003178,2]
[357185850,1743871864221,-1437.78,0.0003178,2]
[357185851,1743871864231,-500.0,0.0003178,2]
[357185852,1743871864241,-600.12,0.0003178,2]
[357185853,1743871864251,-718.29,0.0003178,2]
[357185854,1743871864260,-645.64,0.0003178,2]
[357185855,1743871864272,-971.91,0.0003178,2]
[357185856,1743871864282,-500.0,0.0003178,2]
[357185857,1743871864292,-500.0,0.0003178,2]
[357185858,1743871864304,-754.3,0.0003178,2]
[357185859,1743871864314,-1006.43,0.0003178,2]
[357185860,1743871864324,-459.09095557,0.0003178,2]
[357185861,1743871864334,-602.67,0.0003178,2]
[357185862,1743871864346,-822.78,0.0003178,2]
[357185863,1743871864356,-8628.17,0.0003178,2]
[357185864,1743871864366,-500.0,0.0003178,2]
[357185865,1743871864376,-11180.84,0.0003178,2]
[357185866,1743871864387,-500.0,0.0003178,2]
[357185867,1743871864399,-640.66,0.0003178,2]
[357185868,1743871864409,-500.0,0.0003178,2]
[357185869,1743871864420,-5048.56,0.0003178,2]
[357185870,1743871864431,-511.23,0.0003178,2]
[357185871,1743871864440,-617.12,0.0003178,2]
[357185872,1743871864450,-929.13,0.0003178,2]
[357185873,1743871864460,-500.0,0.0003178,2]
[357185874,1743871864471,-2394.43,0.0003178,2]
[357185875,1743871864482,-500.0,0.0003178,2]
[357185876,1743871864492,-500.0,0.0003178,2]
[357185877,1743871864502,-500.0,0.0003178,2]
[357185878,1743871864512,-490.84572553,0.0003178,2]
[357185879,1743871864522,-500.0,0.0003178,2]
[357185880,1743871864532,-20826.04,0.0003178,2]
[357185881,1743871864542,-1582.99,0.0003178,2]
[357185882,1743871864551,-500.0,0.0003178,2]
[357185883,1743871864561,-909.61,0.00031892,2]
[357185884,1743871864571,-151.0,0.00032044,7]
[357185885,1743871864581,-151.0,0.00032044,7]
[357185886,1743871864592,-151.0,0.00032044,7]
[357185887,1743871864601,-151.0,0.00032044,7]
[357185888,1743871864611,-151.0,0.00032044,7]
[357185889,1743871864621,-1088.49,0.00032053,2]
[357185890,1743871864631,-500.0,0.00032053,2]
[357185891,1743871864640,-500.0,0.00032053,2]
[357185892,1743871864650,-1054.39,0.00032054,2]
[357185893,1743871864659,-500.0,0.00032054,2]
[357185894,1743871864669,-512.49101717,0.00032054,2]
[357185895,1743871864678,-500.0,0.00032054,2]
[357185896,1743871864687,-500.0,0.00032054,2]
[357185897,1743871864697,-500.0,0.00032054,2]
[357185898,1743871864706,-815.78,0.00032054,2]
[357185899,1743871864716,-497.86325827,0.00032054,2]
[357185900,1743871864726,-546.4,0.00032054,2]
[357185901,1743871864735,-1733.42,0.00032054,2]
[357185902,1743871864745,-500.0,0.00032054,2]
[357185903,1743871864755,-500.0,0.00032054,2]
[357185904,1743871864764,-287.1651568,0.00032054,2]
[357185905,1743871864774,-2000.0,0.00032054,2]
[357185906,1743871864784,-500.0,0.00032054,2]
[357185907,1743871864793,-540.73,0.00032054,2]
[357185908,1743871864803,-500.0,0.00032054,2]
[357185909,1743871864813,-1151.97,0.00032054,2]
[357185910,1743871864822,-781.09,0.00032054,2]
[357185911,1743871864832,-619.11,0.00032054,2]
[357185912,1743871864842,-1004.02,0.00032054,2]
[357185913,1743871864851,-645.38,0.00032054,2]
[357185914,1743871864861,-525.88574171,0.00032054,2]
[357185915,1743871864871,-500.0,0.00032054,2]
[357185916,1743871864881,-519.04,0.00032054,2]
[357185917,1743871864890,-500.0,0.00032054,2]
[357185918,1743871864900,-500.0,0.00032054,2]
[357185919,1743871864910,-500.0,0.00032054,2]
[357185920,1743871864919,-500.0,0.00032054,2]
[357185921,1743871864928,-500.0,0.00032054,2]
[357185922,1743871864938,-500.0,0.00032054,2]
[357185923,1743871864947,-891.95,0.00032054,2]
[357185924,1743871864957,-500.0,0.00032054,2]
[357185925,1743871864966,-2752.19,0.00032054,2]
[357185926,1743871864976,-1592.16,0.00032054,2]
[357185927,1743871864986,-857.66,0.00032054,2]
[357185928,1743871864995,-809.97,0.00032054,2]
[357185929,1743871865005,-601.58,0.00032054,2]
[357185930,1743871865014,-2922.39,0.00032054,2]
[357185931,1743871865024,-1083.85,0.00032054,2]
[357185932,1743871865033,-500.0,0.00032054,2]
[357185933,1743871865042,-500.0,0.00032054,2]
[357185934,1743871865051,-500.0,0.00032054,2]
[357185935,1743871865060,-500.0,0.00032054,2]
[357185936,1743871865070,-1033.3,0.00032054,2]
[357185937,1743871865079,-500.0,0.00032054,2]
[357185938,1743871865088,-543.71,0.00032054,2]
[357185939,1743871865097,-500.0,0.00032054,2]
[357185940,1743871865107,-503.01285272,0.00032054,2]
[357185941,1743871865116,-1172.11,0.00032054,2]
[357185942,1743871865125,-500.0,0.00032054,2]
[357185943,1743871865135,-750.61,0.00032054,2]
[357185944,1743871865143,-540.58,0.00032054,2]
[357185945,1743871865152,-500.0,0.00032054,2]
[357185946,1743871865162,-500.0,0.00032054,2]
[357185947,1743871865171,-500.0,0.00032054,2]
[357185948,1743871865180,-1037.47,0.00032054,2]
[357185949,1743871865189,-500.0,0.00032054,2]
[357185950,1743871865199,-500.0,0.00032054,2]
[357185951,1743871865208,-500.0,0.00032054,2]
[357185952,1743871865217,-501.49,0.00032054,2]
[357185953,1743871865228,-500.0,0.00032054,2]
[357185954,1743871865237,-500.0,0.00032054,2]
[357185955,1743871865247,-500.0,0.00032054,2]
[357185956,1743871865256,-452.8551433,0.00032054,2]
[357185957,1743871865266,-673.21,0.00032054,2]
[357185958,1743871865275,-500.0,0.00032054,2]
[357185959,1743871865284,-500.0,0.00032054,2]
[357185960,1743871865293,-500.0,0.00032054,2]
[357185961,1743871865304,-845.57,0.00032054,2]
[357185962,1743871865314,-543.39,0.00032054,2]
[357185963,1743871865323,-500.0,0.00032054,2]
[357185964,1743871865332,-2562.27,0.00032054,2]
[357185965,1743871865343,-500.0,0.00032054,2]
[357185966,1743871865353,-695.81,0.00032054,2]
[357185967,1743871865362,-500.0,0.00032054,2]
[357185968,1743871865372,-757.7,0.00032054,2]
[357185969,1743871865381,-500.0,0.00032054,2]
[357185970,1743871865391,-500.0,0.00032054,2]
[357185971,1743871865401,-515.79,0.00032054,2]
[357185972,1743871865410,-871.31,0.00032054,2]
[357185973,1743871865420,-500.0,0.00032054,2]
[357185974,1743871865429,-939.25,0.00032054,2]
[357185975,1743871865439,-500.0,0.00032054,2]
[357185976,1743871865448,-500.0,0.00032054,2]
[357185977,1743871865458,-500.0,0.00032054,2]
[357185978,1743871865467,-629.48,0.00032054,2]
[357185979,1743871865478,-500.000001,0.00032054,2]
[357185980,1743871865607,-783.62,0.00032054,2]
[357185981,1743871865617,-500.0,0.00032054,2]
[357185982,1743871865626,-561.1,0.00032054,2]
[357185983,1743871865636,-673.31,0.00032054,2]
[357185984,1743871865646,-1406.55,0.00032054,2]
[357185985,1743871865656,-500.0,0.00032054,2]
[357185986,1743871865666,-17329.31,0.00032054,2]
[357185987,1743871865675,-510.25,0.00032054,2]
[357185988,1743871865685,-151.0,0.00032054,7]
[357185989,1743871865694,-1195.62,0.00032054,2]
[357185990,1743871865704,-1437.78,0.00032054,2]
[357185991,1743871865714,-500.0,0.00032054,2]
[357185992,1743871865723,-600.12,0.00032054,2]
[357185993,1743871865733,-718.29,0.00032054,2]
[357185994,1743871865742,-645.64,0.00032054,2]
[357185995,1743871865752,-971.91,0.00032054,2]
[357185996,1743871865761,-500.0,0.00032054,2]
[357185997,1743871865770,-500.0,0.00032054,2]
[357185998,1743871865779,-754.3,0.00032054,2]
[357185999,1743871865789,-1006.43,0.00032054,2]
[357186000,1743871865798,-602.67,0.00032054,2]
[357186001,1743871865808,-822.78,0.00032054,2]
[357186002,1743871865817,-8628.17,0.00032054,2]
[357186003,1743871865827,-166.53247673,0.00032054,2]
[357186004,1743871865836,-11180.84,0.00032054,2]
[357186005,1743871865845,-500.0,0.00032054,2]
[357186006,1743871865855,-640.66,0.00032054,2]
[357186007,1743871865864,-500.0,0.00032054,2]
[357186008,1743871865873,-5048.56,0.00032054,2]
[357186009,1743871865883,-511.23,0.00032054,2]
[357186010,1743871865892,-617.12,0.00032054,2]
[357186011,1743871865902,-929.13,0.00032054,2]
[357186012,1743871865912,-500.0,0.00032054,2]
[357186013,1743871865921,-2394.43,0.00032054,2]
[357186014,1743871865930,-500.0,0.00032054,2]
[357186015,1743871865940,-500.0,0.00032054,2]
[357186016,1743871865949,-500.0,0.00032054,2]
[357186017,1743871865959,-284.2867995,0.00032054,2]
[357186018,1743871865969,-20826.04,0.00032054,2]
[357186019,1743871865979,-1582.99,0.00032054,2]
[357186020,1743871865988,-500.0,0.00032054,2]
[357186021,1743871865998,-5706.68191713,0.00032109,2]
[357186022,1743871866008,-2217.60395128,0.00032192,2]
[357186023,1743871866017,-410.08,0.00032218,2]
[357186024,1743871866027,-161.044165,0.00032327,7]
[357186025,1743871866038,-161.044165,0.00032327,7]
[357186026,1743871866048,-151.0,0.00032327,7]
[357186027,1743871866058,-151.0,0.00032327,7]
[357186028,1743871866067,-1054.39,0.00032328,2]
[357186029,1743871866077,-229.89415652,0.00032328,2]
[357186030,1743871866087,-500.0,0.00032328,2]
[357186031,1743871866096,-500.0,0.00032328,2]
[357186032,1743871866106,-580.22799178,0.00032328,2]
[357186033,1743871866116,-815.78,0.00032328,2]
[357186034,1743871866126,-546.4,0.00032328,2]
[357186035,1743871866135,-1733.42,0.00032328,2]
[357186036,1743871866144,-500.0,0.00032328,2]
[357186037,1743871866154,-500.0,0.00032328,2]
[357186038,1743871866164,-2000.0,0.00032328,2]
[357186039,1743871866173,-500.0,0.00032328,2]
[357186040,1743871866183,-540.73,0.00032328,2]
[357186041,1743871866193,-500.0,0.00032328,2]
[357186042,1743871866202,-1151.97,0.00032328,2]
[357186043,1743871866212,-781.09,0.00032328,2]
[357186044,1743871866221,-619.11,0.00032328,2]
[357186045,1743871866231,-1004.02,0.00032328,2]
[357186046,1743871866240,-645.38,0.00032328,2]
[357186047,1743871866250,-500.0,0.00032328,2]
[357186048,1743871866260,-519.04,0.00032328,2]
[357186049,1743871866269,-500.0,0.00032328,2]
[357186050,1743871866279,-500.0,0.00032328,2]
[357186051,1743871866289,-500.0,0.00032328,2]
[357186052,1743871866301,-193.69469898,0.00032328,2]
[357186053,1743871866310,-500.0,0.00032328,2]
[357186054,1743871866319,-500.0,0.00032328,2]
[357186055,1743871866328,-891.95,0.00032328,2]
[357186056,1743871866339,-500.0,0.00032328,2]
[357186057,1743871866348,-2752.19,0.00032328,2]
[357186058,1743871866358,-1592.16,0.00032328,2]
[357186059,1743871866367,-857.66,0.00032328,2]
[357186060,1743871866377,-809.97,0.00032328,2]
[357186061,1743871866388,-601.58,0.00032328,2]
[357186062,1743871866397,-2922.39,0.00032328,2]
[357186063,1743871866407,-1083.85,0.00032328,2]
[357186064,1743871866416,-500.0,0.00032328,2]
[357186065,1743871866425,-500.0,0.00032328,2]
[357186066,1743871866434,-500.0,0.00032328,2]
[357186067,1743871866444,-500.0,0.00032328,2]
[357186068,1743871866454,-1033.3,0.00032328,2]
[357186069,1743871866463,-500.0,0.00032328,2]
[357186070,1743871866472,-543.71,0.00032328,2]
[357186071,1743871866482,-500.0,0.00032328,2]
[357186072,1743871866491,-1172.11,0.00032328,2]
[357186073,1743871866501,-500.0,0.00032328,2]